bitfinex/quotes_ETHUSD_20240603
["timestamp","ask_amount","ask_price","bid_price","bid_amount"]
[1717392704829,2.61629,3822.2,3821.5,1.312]
[1717392705329,2.61629,3822.2,3821.6,0.07907997]
[1717392706028,2.61629,3822.2,3822.1,0.547]
[1717392709538,7.125919,3822.2,3822.1,0.547]
[1717392711313,7.125919,3822.2,3821.2,4.2935]
[1717392711519,4.509629,3822.2,3820.7,4.4862]
[1717392711731,4.509629,3822.2,3821.6,0.547]
[1717392711901,2.61688,3821.4,3820.7,4.4862]
[1717392712101,2.61688,3821.4,3821.2,0.547]
[1717392712927,2.61688,3821.4,3820.2,2.61765]
[1717392712928,2.61688,3821.4,3820.4,4.5432]
[1717392713144,2.61688,3821.4,3821.2,0.547]
[1717392713329,3.292768,3821.4,3821.1,0.547]
[1717392713535,2.61709,3821.1,3820.4,4.5432]
[1717392713736,2.61709,3821.1,3820.9,0.547]
[1717392714044,2.61709,3821.1,3820.4,4.5432]
[1717392715861,2.61709,3821.1,3820.8,1.313]
[1717392716543,2.61674,3821.6,3820.8,1.313]
[1717392716745,2.61674,3821.6,3821.2,1.313]
[1717392717667,2.61642,3822.1,3821.2,1.313]
[1717392717869,2.61642,3822.1,3821.6,1.313]
[1717392718877,3.289942,3822.1,3821.1,4.3259]
[1717392719064,3.289942,3822.1,3820.7,4.2679]
[1717392719065,2.61664,3821.7,3820.7,4.2679]
[1717392719271,2.61664,3821.7,3821.0,1.313]
[1717392719744,2.61664,3821.7,3820.7,4.2679]
[1717392719745,6.78604,3821.7,3820.7,1.313]
[1717392720489,2.6169,3821.4,3820.3,4.4941]
[1717392720643,2.6169,3821.4,3820.5,1.313]
[1717392721358,2.6169,3821.4,3820.3,4.4941]
[1717392721575,2.6169,3821.4,3820.7,1.313]
[1717392721774,2.6169,3821.4,3820.3,4.4941]
[1717392722086,2.6169,3821.4,3820.4,1.313]
[1717392722496,2.61711,3821.1,3820.4,1.313]
[1717392724446,4.1694,3821.7,3820.8,1.313]
[1717392724651,2.61678,3821.5,3821.2,1.313]
[1717392725098,2.61651,3821.9,3821.3,0.07991261]
[1717392725797,2.61651,3821.9,3821.6,1.313]
[1717392726004,3.0,3822.1,3821.6,1.313]
[1717392726005,2.61663,3821.7,3821.6,1.313]
[1717392726203,2.61663,3821.7,3821.2,1.313]
[1717392726399,2.61663,3821.7,3821.6,0.07970362]
[1717392726601,2.61663,3821.7,3821.2,1.313]
[1717392726760,2.61663,3821.7,3821.6,0.07970362]
[1717392727110,2.878293,3821.7,3821.6,0.07970362]
[1717392727406,2.878293,3821.7,3821.2,1.313]
[1717392728005,2.878293,3821.7,3821.3,0.079775]
[1717392728173,2.61663,3821.7,3821.3,0.079775]
[1717392728378,2.61663,3821.7,3821.2,1.313]
[1717392728675,2.61663,3821.7,3821.3,0.079775]
[1717392729171,2.61663,3821.7,3821.2,1.313]
[1717392729361,2.61663,3821.7,3821.4,0.07975121]
[1717392729728,2.61663,3821.7,3821.5,0.07972741]
[1717392730193,2.61663,3821.7,3821.2,1.313]
[1717392730392,2.61663,3821.7,3821.6,0.07970362]
[1717392730580,2.61663,3821.7,3821.2,1.313]
[1717392730791,2.61663,3821.7,3821.6,0.07970362]
[1717392730992,2.61663,3821.7,3821.2,1.313]
[1717392731189,2.61663,3821.7,3821.6,0.07970362]
[1717392731395,2.61663,3821.7,3821.2,1.313]
[1717392731614,2.61663,3821.7,3821.6,0.07970362]
[1717392731774,2.61663,3821.7,3821.2,1.313]
[1717392731974,2.61663,3821.7,3821.6,0.07970362]
[1717392732176,2.61663,3821.7,3821.2,1.313]
[1717392732683,2.61663,3821.7,3821.3,0.079775]
[1717392733012,2.61663,3821.7,3821.2,1.313]
[1717392733365,2.61663,3821.7,3821.3,0.079775]
[1717392733528,2.61635,3822.2,3821.6,1.313]
[1717392733823,2.61635,3822.2,3822.0,1.313]
[1717392734176,2.61603,3822.6,3822.0,1.313]
[1717392734772,2.61603,3822.6,3822.1,0.07958466]
[1717392735992,2.61603,3822.6,3822.4,1.313]
[1717392736208,2.61603,3822.6,3822.1,0.07958466]
[1717392736388,2.61603,3822.6,3822.0,1.313]
[1717392736595,3.728,3822.9,3822.2,0.07956087]
[1717392736825,1.052863,3822.8,3822.1,0.07958466]
[1717392736987,1.052863,3822.8,3822.3,0.07953709]
[1717392737196,1.052863,3822.8,3822.2,0.07956087]
[1717392737399,3.0,3822.9,3822.0,1.313]
[1717392737593,2.61573,3823.1,3822.0,1.313]
[1717392737594,3.0,3822.8,3822.0,1.313]
[1717392737814,3.0,3823.0,3822.1,0.07958466]
[1717392740896,3.0,3823.0,3822.2,1.313]
[1717392741102,3.0,3823.0,3822.2,1.39211454]
[1717392741433,2.61573,3823.1,3822.2,1.39211454]
[1717392741638,3.309363,3823.1,3822.2,1.39211454]
[1717392744622,2.61594,3822.8,3822.2,1.39211454]
[1717392745721,2.61594,3822.8,3822.2,0.07911454]
[1717392746188,2.61594,3822.8,3821.8,3.92955]
[1717392746691,2.61594,3822.8,3821.9,0.07891996]
[1717392747023,2.9468973,3822.8,3821.9,0.07891996]
[1717392751727,7.2406973,3822.8,3821.9,0.07891996]
[1717392752519,2.9468973,3822.8,3821.9,0.07891996]
[1717392753221,2.61594,3822.8,3822.0,4.3756]
[1717392753611,2.61594,3822.8,3822.1,0.07902519]
[1717392758503,2.61594,3822.8,3822.2,1.36532191]
[1717392758726,2.61594,3822.8,3822.2,1.39190665]
[1717392759236,2.61594,3822.8,3822.3,1.313]
[1717392759738,6.9687,3823.3,3822.4,0.07633966]
[1717392759927,0.99687,3823.2,3822.4,0.07633966]
[1717392760124,3.99687,3823.2,3822.4,0.07633966]
[1717392761236,3.99687,3823.2,3822.3,1.313]
[1717392761536,3.99687,3823.2,3822.4,0.07633966]
[1717392761727,3.0,3823.2,3822.4,4.4808]
[1717392761923,3.0,3823.2,3822.5,0.07631588]
[1717392766914,2.61568,3823.1,3822.3,4.3513]
[1717392767551,2.61568,3823.1,3822.6,0.0762921]
[1717392767853,3.177248,3823.1,3822.3,4.3513]
[1717392768147,3.177248,3823.1,3822.4,0.07633966]
[1717392768148,2.61568,3823.1,3822.4,0.07633966]
[1717392771725,12.2,3824.4,3822.4,0.07633966]
[1717392771726,2.61523,3823.8,3823.0,1.313]
[1717392772455,2.61523,3823.8,3823.1,0.07592568]
[1717392772865,2.61584,3822.9,3822.1,4.4245]
[1717392773162,2.61555,3823.3,3822.2,1.313]
[1717392774827,2.61573,3823.1,3822.2,1.313]
[1717392778386,2.61573,3823.1,3822.6,1.313]
[1717392780477,2.61573,3823.1,3822.2,1.313]
[1717392780684,2.61593,3822.8,3822.1,4.4245]
[1717392780983,2.61613,3822.5,3821.9,1.313]
[1717392781642,4.2751,3822.9,3821.7,4.2252]
[1717392781643,2.61635,3822.2,3821.7,4.2252]
[1717392781843,2.61635,3822.2,3821.5,1.313]
[1717392784677,2.61635,3822.2,3821.6,0.07642885]
[1717392788156,2.877985,3822.2,3821.6,0.07642885]
[1717392790600,2.877985,3822.2,3821.3,40.8464]
[1717392790805,2.877985,3822.2,3821.7,0.07659149]
[1717392791096,2.877985,3822.2,3821.3,40.8464]
[1717392791284,2.877985,3822.2,3821.8,0.0765677]
[1717392791459,0.53170038,3822.1,3821.3,40.8464]
[1717392791663,2.877985,3822.2,3821.9,0.07654391]
[1717392791863,2.877985,3822.2,3821.3,40.8464]
[1717392792097,2.877985,3822.2,3822.0,0.07652012]
[1717392792303,2.877985,3822.2,3821.3,40.8464]
[1717392792501,2.877985,3822.2,3822.1,0.07649633]
[1717392792797,2.877985,3822.2,3821.3,40.8464]
[1717392793007,2.61635,3822.2,3822.1,0.07649633]
[1717392793188,2.61635,3822.2,3821.3,5.8464]
[1717392793374,2.61635,3822.2,3822.1,0.07649633]
[1717392793582,2.61635,3822.2,3821.4,35.0]
[1717392793782,2.61635,3822.2,3822.1,0.07649633]
[1717392794000,3.325595,3822.2,3822.1,0.547]
[1717392794205,3.325595,3822.2,3822.1,0.62349633]
[1717392794406,3.325595,3822.2,3822.1,0.547]
[1717392796216,3.325595,3822.2,3821.3,4.5334]
[1717392796217,3.325595,3822.2,3821.9,0.547]
[1717392796397,3.325595,3822.2,3822.1,0.07668583]
[1717392796571,3.325595,3822.2,3821.9,0.547]
[1717392796772,3.325595,3822.2,3822.1,0.07666443]
[1717392796973,3.325595,3822.2,3821.9,0.547]
[1717392797217,0.7801695,3822.1,3821.9,0.547]
[1717392797934,2.61644,3822.0,3821.7,0.547]
[1717392798285,2.61644,3822.0,3821.8,0.547]
[1717392798598,2.61644,3822.0,3821.1,7.28]
[1717392798815,2.61644,3822.0,3821.8,0.547]
[1717392799130,0.33966095,3821.9,3821.8,0.547]
[1717392800291,2.61644,3822.0,3821.8,0.547]
[1717392802585,2.61617,3822.4,3821.8,0.547]
[1717392802782,2.61617,3822.4,3822.2,0.547]
[1717392802986,2.61617,3822.4,3821.9,0.07674258]
[1717392803224,2.6163,3822.2,3821.2,7.28]
[1717392803520,2.6163,3822.2,3822.0,0.07671879]
[1717392803733,2.6163,3822.2,3821.9,0.547]
[1717392809776,2.6163,3822.2,3821.7,0.547]
[1717392809957,2.6163,3822.2,3821.8,0.07679083]
[1717392810137,2.6163,3822.2,3821.0,9.8971]
[1717392810138,6.98613,3822.0,3821.0,7.28]
[1717392810326,6.98613,3822.0,3820.9,4.199]
[1717392810655,6.98613,3822.0,3821.5,0.547]
[1717392811076,6.98613,3822.0,3821.6,0.07685066]
[1717392811356,6.98613,3822.0,3821.6,0.62385066]
[1717392811586,2.61656,3821.8,3821.6,0.07685066]
[1717392811757,2.61656,3821.8,3821.6,0.547]
[1717392822181,2.61656,3821.8,3821.7,0.0769461]
[1717392822544,4.4825,3822.5,3821.7,0.0769461]
[1717392822842,2.61632,3822.2,3821.7,0.0769461]
[1717392823043,2.61632,3822.2,3822.1,0.547]
[1717392823357,3.326202,3822.2,3822.1,0.62385094]
[1717392824985,2.61632,3822.2,3822.1,0.62385094]
[1717392825190,2.61632,3822.2,3822.1,0.547]
[1717392826391,3.0,3822.6,3822.1,0.547]
[1717392826782,3.0,3822.6,3822.5,0.547]
[1717392828269,3.0,3822.6,3822.5,0.62365797]
[1717392828476,4.2569,3822.8,3822.5,0.62365797]
[1717392828681,2.61569,3823.1,3822.7,0.547]
[1717392828991,2.61569,3823.1,3822.1,4.1026]
[1717392828992,2.61569,3823.1,3823.0,0.547]
[1717392830305,2.61601,3822.7,3822.1,4.0539]
[1717392830622,4.4087,3822.6,3822.2,0.07672933]
[1717392830752,3.318561,3822.5,3821.5,7.28]
[1717392830952,2.61609,3822.5,3822.4,0.547]
[1717392833649,2.61609,3822.5,3822.4,0.62368176]
[1717392845824,2.61609,3822.5,3822.4,0.07668176]
[1717392846030,2.61609,3822.5,3822.4,0.547]
[1717392846259,2.61609,3822.5,3822.4,0.62348609]
[1717392850145,2.61583,3822.9,3822.4,0.62348609]
[1717392850348,2.61583,3822.9,3822.8,0.547]
[1717392850676,5.61583,3822.9,3822.8,0.62339097]
[1717392850834,5.61583,3822.9,3822.8,0.547]
[1717392851239,5.61583,3822.9,3822.3,4.3974]
[1717392851453,5.61583,3822.9,3822.7,0.547]
[1717392852552,2.61583,3822.9,3822.7,0.547]
[1717392857291,2.61583,3822.9,3822.3,4.3974]
[1717392857577,2.61583,3822.9,3822.8,0.547]
[1717392858382,2.61583,3822.9,3822.3,4.3974]
[1717392858582,2.61583,3822.9,3822.8,0.547]
[1717392860692,2.61583,3822.9,3821.8,4.3782]
[1717392860980,2.61598,3822.7,3822.6,0.547]
[1717392861542,2.61598,3822.7,3821.8,4.3782]
[1717392861803,2.61598,3822.7,3822.6,0.547]
[1717392862102,3.295278,3822.7,3822.6,0.547]
[1717392866082,3.295278,3822.7,3822.5,0.547]
[1717392866283,3.295278,3822.7,3822.6,0.07626431]
[1717392866586,3.295278,3822.7,3822.4,0.547]
[1717392866746,3.295278,3822.7,3822.5,0.0762881]
[1717392866952,0.7472278,3822.6,3822.5,0.0762881]
[1717392867351,2.61608,3822.5,3822.3,0.547]
[1717392867679,2.61608,3822.5,3822.4,0.07631188]
[1717392870467,7.09438,3822.5,3822.1,0.547]
[1717392870691,2.61622,3822.3,3822.1,0.547]
[1717392874389,2.61622,3822.3,3822.2,0.07671401]
[1717392874605,2.61622,3822.3,3822.1,0.547]
[1717392874824,2.61622,3822.3,3822.2,0.07671401]
[1717392875006,2.61622,3822.3,3822.1,0.547]
[1717392875214,2.61622,3822.3,3822.2,0.07671401]
[1717392875378,7.11887,3822.7,3822.1,0.547]
[1717392875732,7.11887,3822.7,3822.6,0.547]
[1717392875926,7.830757,3822.7,3822.6,0.547]
[1717392876436,3.327857,3822.7,3822.6,0.547]
[1717392877345,5.61557,3823.3,3822.6,0.547]
[1717392877501,5.61557,3823.3,3823.2,0.547]
[1717392879902,5.61557,3823.3,3822.8,0.547]
[1717392880102,2.61579,3823.0,3822.8,0.547]
[1717392885851,2.61579,3823.0,3822.0,4.1052]
[1717392886057,2.61579,3823.0,3822.9,0.547]
[1717392887074,2.61579,3823.0,3822.7,0.547]
[1717392887611,2.61579,3823.0,3822.8,0.07616785]
[1717392888096,2.61579,3823.0,3822.0,4.1052]
[1717392888263,2.61579,3823.0,3822.7,0.547]
[1717392888441,2.61588,3822.8,3822.7,0.547]
[1717392889589,2.61588,3822.8,3822.7,0.62319163]
[1717392896089,2.61588,3822.8,3822.7,0.07619163]
[1717392896272,2.61588,3822.8,3822.7,0.547]
[1717392896468,2.61588,3822.8,3822.7,0.62070403]
[1717392898692,2.61588,3822.8,3822.7,0.07370403]
[1717392898917,2.9489579,3822.8,3822.7,0.547]
[1717392899053,2.9489579,3822.8,3822.7,0.62076821]
[1717392899249,2.9489579,3822.8,3822.7,0.07376821]
[1717392899468,2.9489579,3822.8,3822.7,0.547]
[1717392899801,2.9489579,3822.8,3822.7,0.62076821]
[1717392900450,2.9489579,3822.8,3822.7,0.547]
[1717392900748,2.9489579,3822.8,3822.7,0.62076821]
[1717392901420,2.9489579,3822.8,3822.7,0.07376821]
[1717392901550,7.2329579,3822.8,3822.7,0.07376821]
[1717392901750,2.61625,3822.3,3821.9,7.28]
[1717392901983,2.61625,3822.3,3822.2,0.547]
[1717392902196,2.877875,3822.3,3822.2,0.547]
[1717392902389,2.877875,3822.3,3822.2,0.62095132]
[1717392903920,2.877875,3822.3,3822.2,0.07395132]
[1717392904135,2.877875,3822.3,3822.2,0.547]
[1717392906516,2.877875,3822.3,3821.7,4.3416]
[1717392906702,6.77175,3822.3,3822.2,0.07395132]
[1717392906908,2.6163,3822.2,3821.9,0.547]
[1717392907112,6.77172,3822.3,3822.2,0.0742448]
[1717392907280,9.77172,3822.3,3822.2,0.0742448]
[1717392907612,10.748892,3822.3,3822.0,0.547]
[1717392907833,2.61659,3821.8,3821.1,7.28]
[1717392908038,2.61659,3821.8,3820.8,6.86938]
[1717392908180,2.61659,3821.8,3821.7,0.547]
[1717392909218,4.0983,3821.7,3820.1,4.4863]
[1717392909384,2.61707,3821.1,3821.0,0.547]
[1717392909926,4.3417,3821.5,3820.7,0.547]
[1717392910223,3.55,3821.4,3820.1,4.4863]
[1717392910425,3.55,3821.4,3820.7,0.547]
[1717392910633,0.78917,3821.3,3820.7,0.547]
[1717392910828,0.55,3821.2,3820.7,0.547]
[1717392911187,4.492,3821.1,3820.1,4.4863]
[1717392911393,4.492,3821.1,3820.0,0.21625847]
[1717392911616,2.61717,3821.0,3820.5,0.547]
[1717392911793,2.61726,3820.8,3820.5,0.547]
[1717392912186,2.61726,3820.8,3820.0,0.21625847]
[1717392912417,2.61726,3820.8,3820.7,0.547]
[1717392914827,2.61726,3820.8,3820.7,0.61948168]
[1717392914987,0.78917,3821.3,3820.7,0.61948168]
[1717392914988,2.61696,3821.3,3820.7,0.61948168]
[1717392915331,2.61696,3821.3,3821.2,0.547]
[1717392916274,2.61662,3821.8,3821.2,5.15314044]
[1717392916544,2.61662,3821.8,3821.7,0.547]
[1717392917045,2.61662,3821.8,3821.7,0.61929557]
[1717392918054,2.61627,3822.3,3821.7,0.61929557]
[1717392918252,2.61627,3822.3,3822.2,0.547]
[1717392918728,5.877897,3822.3,3822.2,0.547]
[1717392920493,2.6165,3821.9,3821.2,4.5335]
[1717392920763,2.6165,3821.9,3821.8,0.547]
[1717392922389,2.6165,3821.9,3820.9,7.28]
[1717392922680,2.6165,3821.9,3821.8,0.547]
[1717392922820,2.87815,3821.9,3821.8,0.547]
[1717392925244,2.87815,3821.9,3820.8,4.5021]
[1717392925548,2.87815,3821.9,3821.8,0.547]
[1717392927555,2.61678,3821.5,3820.8,4.5021]
[1717392927767,2.61678,3821.5,3821.4,0.547]
[1717392932847,2.6165,3821.9,3821.4,0.547]
[1717392933049,2.6165,3821.9,3820.8,4.5021]
[1717392933050,2.87815,3821.9,3821.8,0.547]
[1717392936964,2.6165,3821.9,3821.8,0.547]
[1717392937290,3.261627,3822.3,3821.8,0.547]
[1717392937291,5.61624,3822.3,3821.8,0.547]
[1717392937453,5.61624,3822.3,3822.2,0.547]
[1717392937855,5.61624,3822.3,3822.2,0.68714658]
[1717392938154,6.177864,3822.3,3822.2,0.68714658]
[1717392938350,6.177864,3822.3,3822.2,0.547]
[1717392941990,6.177864,3822.3,3821.5,4.1441]
[1717392942198,6.177864,3822.3,3822.2,0.547]
[1717392942877,6.177864,3822.3,3822.2,0.14014658]
[1717392943071,2.61648,3822.0,3821.2,4.3425]
[1717392943526,2.61648,3822.0,3821.9,0.547]
[1717392943731,2.61648,3822.0,3821.2,4.3425]
[1717392944021,2.61648,3822.0,3821.9,0.68715314]
[1717392944281,2.61648,3822.0,3821.9,0.547]
[1717392947913,2.61648,3822.0,3821.9,0.68715314]
[1717392948337,2.61618,3822.4,3821.9,0.68715314]
[1717392948538,2.61618,3822.4,3822.3,0.547]
[1717392949012,2.877798,3822.4,3822.3,0.547]
[1717392949311,2.877798,3822.4,3821.8,4.3921]
[1717392949633,7.202598,3822.4,3822.3,0.547]
[1717392950637,2.61652,3821.9,3821.3,4.4768]
[1717392950945,2.61652,3821.9,3821.8,0.547]
[1717392951316,2.61652,3821.9,3821.8,0.68703227]
[1717392951918,2.61652,3821.9,3821.8,0.547]
[1717392955828,2.61607,3822.6,3821.8,0.547]
[1717392956033,0.261607,3822.5,3821.6,4.4991]
[1717392956232,2.61607,3822.6,3822.5,0.547]
[1717392956618,2.61607,3822.6,3822.5,0.6869387]
[1717392957631,2.61607,3822.6,3822.5,0.547]
[1717392957963,2.61607,3822.6,3822.2,1.312]
[1717392958168,0.261607,3822.5,3822.3,0.13997763]
[1717392958324,0.261607,3822.5,3822.2,1.312]
[1717392958723,0.261607,3822.5,3822.4,0.13997952]
[1717392958965,0.261607,3822.5,3822.2,1.312]
[1717392959195,0.261607,3822.5,3822.3,0.14000509]
[1717392959476,0.261607,3822.5,3822.2,1.312]
[1717392959659,2.61607,3822.6,3822.4,0.13997952]
[1717392959859,2.61607,3822.6,3822.3,0.14000509]
[1717392960069,2.61607,3822.6,3822.5,0.13995395]
[1717392960474,2.61607,3822.6,3822.2,1.312]
[1717392960974,2.61607,3822.6,3822.3,0.14000509]
[1717392961176,2.61607,3822.6,3822.5,1.312]
[1717392961331,2.61607,3822.6,3822.5,1.45185024]
[1717392962340,2.61607,3822.6,3822.5,0.13985024]
[1717392962540,2.877677,3822.6,3822.2,1.312]
[1717392962888,2.61607,3822.6,3822.3,0.13990138]
[1717392963175,2.61607,3822.6,3822.2,1.312]
[1717392963474,2.61607,3822.6,3822.3,0.13987698]
[1717392963849,2.61607,3822.6,3822.2,1.312]
[1717392964029,2.61607,3822.6,3822.4,0.13985141]
[1717392964242,2.61607,3822.6,3822.3,0.13987698]
[1717392964670,2.61607,3822.6,3822.2,1.312]
[1717392964877,2.61607,3822.6,3822.4,0.13985141]
[1717392965175,2.61576,3823.0,3822.5,0.13982584]
[1717392965410,2.61576,3823.0,3822.8,1.312]
[1717392965560,2.61576,3823.0,3822.9,0.13972358]
[1717392965873,2.61576,3823.0,3822.7,1.312]
[1717392966382,2.61576,3823.0,3822.8,0.13974914]
[1717392966578,2.61576,3823.0,3822.7,1.312]
[1717392966879,2.61576,3823.0,3822.8,0.13974914]
[1717392967179,2.61576,3823.0,3822.7,1.312]
[1717392967377,2.61576,3823.0,3822.8,0.13974914]
[1717392967546,2.61576,3823.0,3822.7,1.312]
[1717392967740,2.61576,3823.0,3822.8,0.13974914]
[1717392967972,2.61576,3823.0,3822.7,1.312]
[1717392968160,2.61576,3823.0,3822.8,0.13974914]
[1717392968361,2.61576,3823.0,3822.7,1.312]
[1717392968538,2.61576,3823.0,3822.8,0.13974914]
[1717392968742,2.61576,3823.0,3822.7,1.312]
[1717392968964,2.61576,3823.0,3822.8,0.13974914]
[1717392969143,2.61576,3823.0,3822.7,1.312]
[1717392969356,2.61576,3823.0,3822.8,0.13941051]
[1717392969556,2.61576,3823.0,3822.7,1.312]
[1717392969787,2.61576,3823.0,3822.8,0.13941051]
[1717392970078,2.61576,3823.0,3822.7,1.312]
[1717392970283,2.61576,3823.0,3822.9,0.13938495]
[1717392970482,2.61576,3823.0,3822.8,0.13941051]
[1717392970683,2.61576,3823.0,3822.7,1.312]
[1717392970977,2.61576,3823.0,3822.8,0.13941051]
[1717392971183,2.61576,3823.0,3822.7,1.312]
[1717392971343,2.61576,3823.0,3822.8,0.13941051]
[1717392971546,2.61576,3823.0,3822.2,4.2285]
[1717392971863,2.61576,3823.0,3822.3,1.45153834]
[1717392975789,2.877336,3823.0,3822.3,1.45153834]
[1717392976275,2.61599,3822.7,3822.3,1.45153834]
[1717392978073,2.61599,3822.7,3822.3,0.13953834]
[1717392978295,2.61599,3822.7,3822.6,0.547]
[1717392978703,2.61599,3822.7,3822.6,0.68647079]
[1717392978907,3.3562766,3822.7,3822.6,0.68647079]
[1717392979429,3.3562766,3822.7,3822.6,0.547]
[1717392986732,2.61599,3822.7,3822.6,0.547]
[1717392987623,2.6157,3823.1,3822.6,0.547]
[1717392987775,2.6157,3823.1,3822.9,0.547]
[1717392988428,2.6157,3823.1,3823.0,0.13949054]
[1717392989122,2.61541,3823.5,3823.0,4.56559054]
[1717392989320,2.61511,3824.0,3823.0,4.56559054]
[1717392989472,2.61511,3824.0,3823.9,0.547]
[1717392989923,2.61511,3824.0,3823.6,1.311]
[1717392990418,2.61511,3824.0,3823.7,0.13906159]
[1717392992793,2.61511,3824.0,3823.0,7.04183]
[1717392992994,2.61511,3824.0,3823.8,0.13893848]
[1717392993227,2.61511,3824.0,3823.5,1.311]
[1717392993412,2.61511,3824.0,3823.9,0.13855923]
[1717392993620,5.61511,3824.0,3823.5,1.311]
[1717392993796,5.61511,3824.0,3823.9,0.13855923]
[1717392994100,6.176621,3824.0,3823.5,1.311]
[1717392994293,5.61511,3824.0,3823.5,1.311]
[1717392994497,5.61511,3824.0,3823.6,0.13863588]
[1717392994853,2.61519,3823.8,3823.6,0.13863588]
[1717392995142,2.61519,3823.8,3823.0,7.28]
[1717392995299,7.381,3823.9,3822.6,4.5251]
[1717392995300,2.61554,3823.3,3822.6,4.5251]
[1717392995924,2.61584,3822.9,3822.7,0.13886591]
[1717392996308,2.61584,3822.9,3822.3,4.2381]
[1717392996714,4.3946,3823.3,3822.4,0.13894261]
[1717392996935,3.0,3823.2,3822.4,0.13894261]
[1717392997456,2.61571,3823.1,3822.4,0.13894261]
[1717393019883,2.61571,3823.1,3822.8,0.546]
[1717393020641,2.61571,3823.1,3821.9,6.80304]
[1717393020848,2.61571,3823.1,3822.7,0.546]
[1717393022383,2.61571,3823.1,3822.5,4.4289]
[1717393022548,2.61571,3823.1,3822.9,0.546]
[1717393022749,3.177281,3823.1,3823.0,0.13903615]
[1717393026086,3.177281,3823.1,3822.5,4.4289]
[1717393026593,3.177281,3823.1,3822.6,0.1391384]
[1717393026773,2.61582,3822.9,3822.5,0.546]
[1717393026972,2.61582,3822.9,3822.6,0.1391384]
[1717393028604,2.61582,3822.9,3822.7,0.546]
[1717393028902,2.61582,3822.9,3822.8,0.13908727]
[1717393029263,2.61582,3822.9,3822.7,0.546]
[1717393029674,2.61582,3822.9,3822.8,0.13908727]
[1717393030201,2.61582,3822.9,3822.7,0.546]
[1717393030373,2.61582,3822.9,3822.8,0.13908727]
[1717393030563,2.61582,3822.9,3822.7,0.546]
[1717393030902,2.61582,3822.9,3822.8,0.13913304]
[1717393031206,2.61582,3822.9,3822.8,0.546]
[1717393032069,5.61556,3823.3,3822.8,0.68513304]
[1717393032368,5.61556,3823.3,3823.1,0.546]
[1717393032685,6.177116,3823.3,3823.1,0.546]
[1717393033288,6.177116,3823.3,3822.7,4.2861]
[1717393033464,6.177116,3823.3,3822.9,0.546]
[1717393034074,6.177116,3823.3,3823.0,0.13908192]
[1717393035887,5.61556,3823.3,3823.0,0.13908192]
[1717393037676,2.61567,3823.1,3822.6,0.546]
[1717393038079,2.61567,3823.1,3822.7,0.13924703]
[1717393038492,4.1511,3823.0,3821.5,7.28]
[1717393038695,4.1511,3822.8,3821.2,4.3022]
[1717393039018,4.1511,3822.8,3821.9,0.546]
[1717393039215,3.56557143,3822.7,3821.2,4.3022]
[1717393039510,2.61628,3822.3,3821.2,4.3022]
[1717393039688,2.61628,3822.3,3821.8,0.546]
[1717393039887,0.261628,3822.2,3821.8,0.546]
[1717393040120,2.61637,3822.1,3821.9,0.13950648]
[1717393040275,2.61637,3822.1,3821.2,4.3022]
[1717393040611,2.61662,3821.8,3821.3,0.13965995]
[1717393040773,2.61662,3821.8,3821.5,0.546]
[1717393040973,3.321932,3821.8,3821.6,0.13986991]
[1717393041186,3.321932,3821.8,3821.5,0.546]
[1717393041382,3.321932,3821.8,3821.6,0.13986991]
[1717393041983,2.61687,3821.4,3821.1,0.546]
[1717393042198,2.61687,3821.4,3821.3,0.546]
[1717393042395,2.61687,3821.4,3821.3,0.13994665]
[1717393042609,2.61687,3821.4,3820.9,4.4151]
[1717393042825,2.61687,3821.4,3821.2,0.546]
[1717393043009,2.61687,3821.4,3821.3,0.13994665]
[1717393043323,2.878557,3821.4,3820.9,0.546]
[1717393043521,2.878557,3821.4,3820.5,4.461]
[1717393043824,2.61687,3821.4,3821.0,0.546]
[1717393043977,2.61687,3821.4,3821.1,0.13999782]
[1717393044323,2.61687,3821.4,3820.5,4.461]
[1717393044533,2.61687,3821.4,3821.2,0.13997224]
[1717393044817,2.61703,3821.2,3820.5,4.461]
[1717393049720,0.705312,3821.8,3819.7,35.0]
[1717393049721,2.61718,3820.9,3819.7,4.2694]
[1717393049876,2.61718,3820.9,3819.7,5.5824]
[1717393050193,2.61718,3820.9,3819.7,4.2694]
[1717393050524,2.61718,3820.9,3819.8,1.313]
[1717393051022,2.61718,3820.9,3820.2,1.313]
[1717393054043,2.61718,3820.9,3820.1,1.313]
[1717393054405,4.3299,3820.8,3819.9,2.61786]
[1717393054625,4.3299,3820.8,3820.2,0.14127483]
[1717393054834,4.3299,3820.8,3819.9,2.61786]
[1717393055219,4.3299,3820.8,3820.0,0.14132603]
[1717393055905,2.61734,3820.7,3820.0,0.14132603]
[1717393056345,2.61734,3820.7,3819.8,1.313]
[1717393056751,2.61734,3820.7,3819.9,0.14135163]
[1717393061952,2.61714,3821.0,3820.0,37.61777]
[1717393062145,2.61714,3821.0,3820.0,2.61777]
[1717393062341,2.61714,3821.0,3820.1,0.14123326]
[1717393064329,4.4832,3820.6,3820.1,0.14123326]
[1717393064660,4.4832,3820.6,3819.7,4.2662]
[1717393064874,4.4832,3820.6,3820.2,0.14120156]
[1717393065172,4.4832,3820.6,3819.7,4.2662]
[1717393065319,4.4832,3820.6,3820.3,0.14117596]
[1717393065526,4.4832,3820.6,3819.7,4.2662]